[Event "Hungary Olimpic Hopes 2022"]
[Site "Tapolca"]
[Date "2022.06.26"]
[Round "7.6"]
[White "Lazsadi, Kerka Lilla"]
[Black "Balazs, Sztella Anna"]
[Result "1/2-1/2"]
[ECO "E30"]
[WhiteElo "1755"]
[BlackElo "1572"]
[Annotator "NA RC"]
[PlyCount "91"]
[EventDate "2022.06.23"]
[EventType "swiss"]
[EventCountry "HUN"]
[SourceTitle "playchess.com"]
[Source "ChessBase"]
[SourceQuality "1"]
[TimeControl "5400+30"]

1. c4 {[%emt 0:00:05]} Nf6 {[%emt 0:00:04]} 2. Nc3 e6 {[%emt 0:00:04]} 3. d4 {[%emt 0:00:34]} Bb4 4. Bg5 {[%emt 0:00:17]} h6 {[%emt 0:00:13]} 5. Bxf6 {[%emt 0:00:24]} Qxf6 {[%emt 0:00:05]} 6. e3 {[%emt 0:00:19]} O-O {[%emt 0:00:07]} 7. Bd3 {[%emt 0:00:21]} c5 {[%emt 0:00:32]} 8. Nge2 {[%emt 0:00:36]} d6 {[%emt 0:00:32]} 9. O-O {[%emt 0:00:25]} Nc6 10. Ne4 {[%emt 0:01:10]} Qe7 {[%emt 0:00:32]} 11. a3 {[%emt 0:01:24]} Ba5 {[%emt 0:00:05]} 12. Bc2 {[%emt 0:02:59]} cxd4 {[%emt 0:04:24]} 13. exd4 {[%emt 0:00:57]} e5 {[%emt 0:00:10]} 14. d5 {[%emt 0:01:13]} Nd8 {[%emt 0:00:07]} 15. b4 {[%emt 0:00:36]} Bc7 16. N4c3 {[%emt 0:06:56]} f5 {[%emt 0:02:41]} 17. Re1 {[%emt 0:02:48]} f4 18. f3 Bf5 {[%emt 0:06:41]} 19. Bxf5 {[%emt 0:02:16]} Rxf5 {[%emt 0:01:48]} 20. Kh1 {[%emt 0:14:32]} Bb6 {[%emt 0:02:28]} 21. Qc2 {[%emt 0:20:26]} g6 22. Ng1 Rc8 {[%emt 0:01:32]} 23. Na4 {[%emt 0:03:32]} Bd4 {[%emt 0:01:56]} 24. Rad1 Qc7 {[%emt 0:00:20]} 25. Rxd4 {[%emt 0:08:06]} exd4 {[%emt 0:00:32]} 26. Nb2 {[%emt 0:06:38]} b5 27. Qe4 {[%emt 0:01:17]} bxc4 {[%emt 0:01:42]} 28. Qe8+ Rf8 {[%emt 0:02:13]} 29. Qxg6+ {[%emt 0:01:04]} Qg7 {[%emt 0:00:05]} 30. Qxd6 {[%emt 0:10:47]} d3 31. Qa6 {[%emt 0:00:30]} d2 {[%emt 0:11:52]} 32. Rd1 Qxb2 {[%emt 0:05:57]} 33. Qxc8 {[%emt 0:00:41]} Qc1 34. Qa6 Kh7 {[%emt 0:03:48]} 35. Qxa7+ {[%emt 0:04:45]} Rf7 {[%emt 0:00:07]} 36. Qa4 {[%emt 0:00:12]} c3 {[%emt 0:00:04]} 37. Qb3 Re7 {[%emt 0:00:58]} 38. d6 {[%emt 0:02:28]} Re1 39. Qd5 {[%emt 0:00:45]} Rxg1+ {[%emt 0:00:30]} 40. Rxg1 {[%emt 0:00:10]} c2 {[%emt 0:00:17]} 41. Qf5+ {[%emt 0:01:20]} Kg7 {[%emt 0:00:47]} 42. Qe5+ {[%emt 0:00:25]} Kg6 {[%emt 0:00:27]} 43. Qe4+ {[%emt 0:00:59]} Kf6 {[%emt 0:00:50]} 44. Qe7+ {[%emt 0:00:36]} Kg6 {[%emt 0:00:17]} 45. Qe4+ {[%emt 0:00:09]} Kf6 {[%emt 0:00:07]} 46. Qe7+ {[%emt 0:00:07]} 1/2-1/2

[Event "Hungary Olimpic Hopes 2022"]
[Site "Tapolca"]
[Date "2022.06.26"]
[Round "7.7"]
[White "Horvath, Greta"]
[Black "Karacsonyi, Luca"]
[Result "0-1"]
[ECO "B48"]
[WhiteElo "1365"]
[BlackElo "1834"]
[Annotator "NA RC"]
[PlyCount "38"]
[EventDate "2022.06.23"]
[EventType "swiss"]
[EventCountry "HUN"]
[SourceTitle "playchess.com"]
[Source "ChessBase"]
[SourceQuality "1"]
[TimeControl "5400+30"]

1. e4 {[%emt 0:00:03]} c5 {[%emt 0:00:05]} 2. Nf3 {[%emt 0:00:04]} Nc6 {[%emt 0:00:04]} 3. d4 {[%emt 0:00:05]} cxd4 {[%emt 0:00:07]} 4. Nxd4 {[%emt 0:00:06]} e6 {[%emt 0:00:04]} 5. Nc3 {[%emt 0:00:06]} Qc7 {[%emt 0:00:07]} 6. Be3 {[%emt 0:00:14]} a6 {[%emt 0:00:05]} 7. Qf3 Nf6 {[%emt 0:02:19]} 8. O-O-O {[%emt 0:01:59]} Bb4 {[%emt 0:12:28]} 9. Nde2 {[%emt 0:21:56]} O-O {[%emt 0:03:47]} 10. Bg5 {[%emt 0:21:42]} Be7 {[%emt 0:06:48]} 11. Ng3 {[%emt 0:06:39]} h6 {[%emt 0:00:00]} 12. Bd2 {[%emt 0:03:56]} b5 {[%emt 0:05:44]} 13. Bd3 {[%emt 0:05:26]} Bb7 14. Be3 {[%emt 0:03:19]} Rac8 {[%emt 0:11:20]} 15. Qe2 {[%emt 0:06:00]} Qa5 {[%emt 0:06:09]} 16. Qd2 {[%emt 0:01:08]} b4 {[%emt 0:10:00]} 17. Nb1 {[%emt 0:04:14]} Qxa2 18. f4 Na5 {[%emt 0:07:51]} 19. Rdf1 {[%emt 0:03:35]} Nb3+ 0-1

[Event "Hungary Olimpic Hopes 2022"]
[Site "Tapolca"]
[Date "2022.06.26"]
[Round "7.8"]
[White "Bende, Eniko Tunde"]
[Black "Toth, Timea"]
[Result "1/2-1/2"]
[ECO "A35"]
[WhiteElo "1142"]
[BlackElo "1964"]
[Annotator "NA RC"]
[PlyCount "109"]
[EventDate "2022.06.23"]
[EventType "swiss"]
[EventCountry "HUN"]
[SourceTitle "playchess.com"]
[Source "ChessBase"]
[SourceQuality "1"]
[TimeControl "5400+30"]

1. c4 {[%emt 0:00:01]} c5 {[%emt 0:00:04]} 2. Nc3 {[%emt 0:00:07]} Nc6 {[%emt 0:00:03]} 3. Nf3 {[%emt 0:00:11]} g6 {[%emt 0:00:10]} 4. d4 {[%emt 0:00:29]} cxd4 {[%emt 0:00:10]} 5. Nxd4 {[%emt 0:00:10]} Nf6 {[%emt 0:00:36]} 6. g3 {[%emt 0:00:07]} Bg7 {[%emt 0:00:46]} 7. Bg2 {[%emt 0:00:10]} O-O {[%emt 0:02:09]} 8. O-O a6 {[%emt 0:20:05]} 9. Nxc6 {[%emt 0:01:41]} dxc6 {[%emt 0:07:01]} 10. Qxd8 {[%emt 0:00:15]} Rxd8 {[%emt 0:00:03]} 11. Bf4 {[%emt 0:00:22]} Nh5 {[%emt 0:12:51]} 12. Be3 {[%emt 0:03:23]} Bxc3 {[%emt 0:05:17]} 13. bxc3 {[%emt 0:00:34]} Be6 {[%emt 0:00:06]} 14. a4 Bxc4 {[%emt 0:18:34]} 15. Bf3 {[%emt 0:02:23]} Nf6 {[%emt 0:01:31]} 16. Rfd1 {[%emt 0:01:52]} Nd5 {[%emt 0:03:15]} 17. Bxd5 {[%emt 0:00:17]} Rxd5 {[%emt 0:00:15]} 18. Rxd5 {[%emt 0:00:56]} Bxd5 {[%emt 0:03:06]} 19. Rb1 {[%emt 0:00:18]} b5 {[%emt 0:00:20]} 20. axb5 {[%emt 0:00:56]} axb5 {[%emt 0:02:48]} 21. f3 {[%emt 0:00:33]} e5 {[%emt 0:00:34]} 22. Kf2 {[%emt 0:00:22]} f5 {[%emt 0:00:28]} 23. Bc5 {[%emt 0:00:35]} Ra2 {[%emt 0:01:33]} 24. Ke3 {[%emt 0:01:25]} Bc4 {[%emt 0:01:38]} 25. Re1 {[%emt 0:00:12]} Kf7 26. f4 {[%emt 0:01:31]} exf4+ {[%emt 0:01:13]} 27. gxf4 {[%emt 0:01:09]} Rc2 {[%emt 0:00:30]} 28. Bb4 Ke6 {[%emt 0:00:20]} 29. h4 {[%emt 0:01:00]} Kd7 {[%emt 0:00:30]} 30. Rd1+ {[%emt 0:00:56]} Kc7 {[%emt 0:00:07]} 31. Rd2 {[%emt 0:00:34]} Rxd2 {[%emt 0:00:38]} 32. Kxd2 {[%emt 0:00:11]} Kd7 {[%emt 0:00:08]} 33. e3 {[%emt 0:00:20]} Ke6 34. Bc5 {[%emt 0:01:12]} Kd5 {[%emt 0:00:26]} 35. Bb4 {[%emt 0:00:17]} Ke4 {[%emt 0:00:20]} 36. Bc5 {[%emt 0:01:09]} Kf3 {[%emt 0:00:14]} 37. Be7 {[%emt 0:00:57]} Ke4 {[%emt 0:00:50]} 38. Bb4 {[%emt 0:00:29]} Kd5 39. Bf8 {[%emt 0:01:07]} Bf1 {[%emt 0:01:34]} 40. Bg7 {[%emt 0:00:36]} Kc4 {[%emt 0:00:45]} 41. Bf8 {[%emt 0:00:52]} Bd3 {[%emt 0:00:18]} 42. Be7 {[%emt 0:00:23]} Be4 {[%emt 0:00:36]} 43. Bf8 {[%emt 0:01:09]} c5 {[%emt 0:03:29]} 44. Be7 {[%emt 0:00:29]} b4 {[%emt 0:00:09]} 45. cxb4 {[%emt 0:00:21]} cxb4 {[%emt 0:00:06]} 46. Bf6 Kd5 {[%emt 0:05:57]} 47. Bb2 {[%emt 0:02:03]} b3 {[%emt 0:00:43]} 48. Kc3 {[%emt 0:00:41]} Bc2 {[%emt 0:00:13]} 49. Kd2 {[%emt 0:00:34]} Ke4 {[%emt 0:00:10]} 50. Ke2 {[%emt 0:01:01]} Bd3+ {[%emt 0:00:17]} 51. Kd2 Ba6 {[%emt 0:01:29]} 52. Bd4 {[%emt 0:02:32]} Bc4 {[%emt 0:01:33]} 53. Kc3 {[%emt 0:00:23]} Bf7 {[%emt 0:00:57]} 54. Kb2 {[%emt 0:00:30]} Kf3 {[%emt 0:00:53]} 55. Bc5 {[%emt 0:00:38]} 1/2-1/2

[Event "Hungary Olimpic Hopes 2022"]
[Site "Tapolca"]
[Date "2022.06.26"]
[Round "7.9"]
[White "Lehocz, Jozsef Jr."]
[Black "Karacsonyi, Bank"]
[Result "1-0"]
[ECO "A05"]
[WhiteElo "1963"]
[BlackElo "1812"]
[Annotator "NA RC"]
[PlyCount "113"]
[EventDate "2022.06.23"]
[EventType "swiss"]
[EventCountry "HUN"]
[SourceTitle "playchess.com"]
[Source "ChessBase"]
[SourceQuality "1"]
[TimeControl "5400+30"]

1. Nf3 {[%emt 0:00:03]} Nf6 {[%emt 0:00:05]} 2. c4 c5 3. g3 {[%emt 0:00:16]} Nc6 {[%emt 0:00:19]} 4. Bg2 {[%emt 0:00:18]} d5 {[%emt 0:00:03]} 5. cxd5 {[%emt 0:00:24]} Nxd5 {[%emt 0:00:00]} 6. O-O {[%emt 0:01:06]} e5 {[%emt 0:00:51]} 7. d3 {[%emt 0:00:43]} Be7 {[%emt 0:00:10]} 8. Nc3 {[%emt 0:03:04]} Nc7 {[%emt 0:06:50]} 9. Be3 {[%emt 0:14:51]} Bd7 {[%emt 0:12:36]} 10. Rc1 {[%emt 0:04:56]} O-O {[%emt 0:04:12]} 11. Nd2 {[%emt 0:09:49]} Rb8 {[%emt 0:03:02]} 12. Nc4 {[%emt 0:08:59]} f6 13. Nd5 {[%emt 0:00:02]} Nxd5 {[%emt 0:06:53]} 14. Bxd5+ {[%emt 0:00:59]} Kh8 {[%emt 0:04:29]} 15. Bg2 {[%emt 0:04:30]} Nd4 {[%emt 0:02:54]} 16. Bxd4 {[%emt 0:01:31]} exd4 {[%emt 0:01:27]} 17. Qd2 b5 {[%emt 0:00:26]} 18. Na5 {[%emt 0:02:20]} Qb6 {[%emt 0:01:15]} 19. Rc2 {[%emt 0:05:51]} Rfc8 {[%emt 0:02:48]} 20. Rfc1 {[%emt 0:02:17]} Be6 {[%emt 0:15:11]} 21. Nb3 {[%emt 0:00:01]} Bxb3 {[%emt 0:00:30]} 22. axb3 {[%emt 0:00:53]} Qe6 {[%emt 0:02:46]} 23. Qa5 {[%emt 0:06:56]} a6 {[%emt 0:01:33]} 24. Bf3 {[%emt 0:03:09]} f5 {[%emt 0:02:29]} 25. Qa2 {[%emt 0:06:19]} Rc7 26. Qa5 Ra7 {[%emt 0:03:56]} 27. b4 {[%emt 0:01:52]} cxb4 {[%emt 0:10:47]} 28. Rc6 {[%emt 0:00:39]} Qd7 {[%emt 0:02:51]} 29. Rxa6 {[%emt 0:00:55]} Rxa6 {[%emt 0:00:13]} 30. Qxa6 {[%emt 0:00:04]} h6 {[%emt 0:00:58]} 31. Rc6 {[%emt 0:02:19]} b3 {[%emt 0:01:26]} 32. Qa5 {[%emt 0:04:38]} Kh7 {[%emt 0:00:42]} 33. Rc7 {[%emt 0:00:31]} Bd8 {[%emt 0:04:00]} 34. Rxd7 Bxa5 35. Rxd4 {[%emt 0:01:35]} Bc3 {[%emt 0:00:36]} 36. bxc3 {[%emt 0:02:40]} b4 {[%emt 0:00:08]} 37. Bd5 {[%emt 0:00:37]} bxc3 {[%emt 0:00:40]} 38. Bxb3 {[%emt 0:01:58]} Rxb3 {[%emt 0:00:10]} 39. Rc4 {[%emt 0:00:21]} Rb2 {[%emt 0:01:02]} 40. e3 {[%emt 0:01:42]} c2 {[%emt 0:00:07]} 41. Kg2 {[%emt 0:00:08]} Kg6 {[%emt 0:00:25]} 42. d4 {[%emt 0:00:46]} Kf6 {[%emt 0:00:19]} 43. Rc6+ {[%emt 0:00:24]} Ke7 {[%emt 0:00:18]} 44. h3 {[%emt 0:01:05]} Kd7 {[%emt 0:00:47]} 45. Rc5 {[%emt 0:00:08]} Kd6 {[%emt 0:00:11]} 46. Kf3 {[%emt 0:00:44]} g5 {[%emt 0:00:14]} 47. g4 {[%emt 0:01:08]} fxg4+ {[%emt 0:00:12]} 48. hxg4 {[%emt 0:01:13]} Ke6 {[%emt 0:01:01]} 49. Ke4 {[%emt 0:00:32]} Ra2 {[%emt 0:00:28]} 50. f3 {[%emt 0:00:21]} Kd6 {[%emt 0:00:18]} 51. Kd3 {[%emt 0:00:41]} Ra3+ {[%emt 0:00:35]} 52. Kd2 {[%emt 0:00:08]} Ra8 {[%emt 0:00:08]} 53. Rxc2 {[%emt 0:00:15]} Rh8 {[%emt 0:00:10]} 54. Ra2 {[%emt 0:00:21]} h5 {[%emt 0:00:24]} 55. gxh5 {[%emt 0:00:05]} Rxh5 {[%emt 0:00:06]} 56. Ra6+ {[%emt 0:00:27]} Kd5 {[%emt 0:00:18]} 57. Kd3 {[%emt 0:00:10]} 1-0

[Event "Hungary Olimpic Hopes 2022"]
[Site "Tapolca"]
[Date "2022.06.26"]
[Round "7.11"]
[White "Kasa, Barnabas"]
[Black "Feher, Botond"]
[Result "0-1"]
[ECO "B30"]
[WhiteElo "1323"]
[BlackElo "1792"]
[Annotator "NA RC"]
[PlyCount "98"]
[EventDate "2022.06.23"]
[EventType "swiss"]
[EventCountry "HUN"]
[SourceTitle "playchess.com"]
[Source "ChessBase"]
[SourceQuality "1"]
[TimeControl "5400+30"]

1. e4 {[%emt 0:00:08]} c5 {[%emt 0:00:07]} 2. Nf3 {[%emt 0:00:47]} Nc6 {[%emt 0:00:03]} 3. c3 {[%emt 0:00:25]} g6 {[%emt 0:00:08]} 4. d4 {[%emt 0:00:26]} cxd4 {[%emt 0:00:07]} 5. cxd4 Bg7 {[%emt 0:06:35]} 6. Nc3 {[%emt 0:03:36]} d6 {[%emt 0:01:48]} 7. Be3 Bg4 {[%emt 0:05:46]} 8. d5 {[%emt 0:24:13]} Ne5 {[%emt 0:01:12]} 9. Bb5+ Nd7 {[%emt 0:02:23]} 10. h3 {[%emt 0:07:35]} Bxf3 {[%emt 0:02:17]} 11. Qxf3 {[%emt 0:00:31]} Ngf6 {[%emt 0:00:30]} 12. O-O {[%emt 0:04:54]} O-O {[%emt 0:04:28]} 13. Qe2 {[%emt 0:04:31]} a6 {[%emt 0:00:34]} 14. Bxd7 {[%emt 0:01:42]} Nxd7 {[%emt 0:04:39]} 15. Rac1 {[%emt 0:08:13]} Rc8 {[%emt 0:03:36]} 16. Bf4 {[%emt 0:02:52]} Qa5 {[%emt 0:03:47]} 17. Qe3 {[%emt 0:02:00]} Bxc3 {[%emt 0:00:44]} 18. bxc3 {[%emt 0:00:35]} Qxa2 {[%emt 0:00:18]} 19. Bh6 Rfe8 {[%emt 0:00:21]} 20. Qd4 {[%emt 0:01:08]} f6 {[%emt 0:04:33]} 21. Qd1 {[%emt 0:04:43]} Qc4 {[%emt 0:00:27]} 22. Qg4 {[%emt 0:00:40]} Nc5 {[%emt 0:01:00]} 23. f3 {[%emt 0:04:43]} Kh8 24. Be3 {[%emt 0:03:25]} Rc7 {[%emt 0:04:12]} 25. Bd4 {[%emt 0:00:56]} Nb3 {[%emt 0:00:44]} 26. Rcd1 Nxd4 {[%emt 0:05:37]} 27. cxd4 {[%emt 0:00:44]} Qb5 {[%emt 0:00:41]} 28. Rc1 Qd7 {[%emt 0:01:57]} 29. Rxc7 {[%emt 0:02:24]} Qxc7 {[%emt 0:01:33]} 30. Qf4 Qc4 {[%emt 0:00:31]} 31. Qe3 {[%emt 0:10:06]} Rc8 32. e5 {[%emt 0:02:17]} fxe5 {[%emt 0:01:57]} 33. Qg5 {[%emt 0:00:33]} Qxd4+ {[%emt 0:00:30]} 34. Kh1 {[%emt 0:00:07]} Re8 {[%emt 0:00:14]} 35. f4 {[%emt 0:01:02]} Qxd5 {[%emt 0:02:26]} 36. f5 {[%emt 0:00:42]} e4 {[%emt 0:00:23]} 37. Qh6 {[%emt 0:01:14]} gxf5 {[%emt 0:01:24]} 38. Qh5 {[%emt 0:00:19]} Rf8 {[%emt 0:00:22]} 39. Qg5 {[%emt 0:00:31]} Qf7 {[%emt 0:00:29]} 40. g4 {[%emt 0:00:17]} f4 {[%emt 0:00:24]} 41. Qa5 {[%emt 0:00:45]} e5 {[%emt 0:00:30]} 42. Qb6 {[%emt 0:01:05]} Qd5 {[%emt 0:00:52]} 43. Qc7 {[%emt 0:00:40]} e3+ {[%emt 0:00:06]} 44. Kh2 {[%emt 0:00:07]} e2 {[%emt 0:00:47]} 45. Qe7 {[%emt 0:00:52]} exf1=N+ {[%emt 0:00:14]} 46. Kg1 {[%emt 0:00:16]} Qf7 {[%emt 0:00:50]} 47. Qxd6 {[%emt 0:00:22]} Qf6 {[%emt 0:00:30]} 48. Qc5 {[%emt 0:00:46]} Ne3 {[%emt 0:00:21]} 49. Qb4 {[%emt 0:00:27]} Nd5 {[%emt 0:00:12]} 0-1

[Event "Hungary Olimpic Hopes 2022"]
[Site "Tapolca"]
[Date "2022.06.26"]
[Round "7.12"]
[White "Horvath, Matyas Sandor"]
[Black "Baki, Bence"]
[Result "1-0"]
[ECO "C77"]
[WhiteElo "1354"]
[BlackElo "1566"]
[Annotator "NA RC"]
[PlyCount "98"]
[EventDate "2022.06.23"]
[EventType "swiss"]
[EventCountry "HUN"]
[SourceTitle "playchess.com"]
[Source "ChessBase"]
[SourceQuality "1"]
[TimeControl "5400+30"]

1. e4 {[%emt 0:00:02]} e5 {[%emt 0:00:04]} 2. Nf3 {[%emt 0:00:06]} Nc6 {[%emt 0:00:05]} 3. Bb5 a6 {[%emt 0:00:21]} 4. Ba4 {[%emt 0:00:20]} Nf6 {[%emt 0:00:08]} 5. d3 {[%emt 0:00:13]} b5 {[%emt 0:01:06]} 6. Bb3 {[%emt 0:00:20]} Bc5 7. O-O {[%emt 0:00:24]} d6 {[%emt 0:00:51]} 8. h3 h6 {[%emt 0:00:41]} 9. Nc3 {[%emt 0:01:35]} Na5 10. Nd5 {[%emt 0:01:54]} Nxb3 {[%emt 0:01:48]} 11. Nxf6+ {[%emt 0:00:22]} Qxf6 {[%emt 0:00:14]} 12. axb3 {[%emt 0:01:00]} O-O {[%emt 0:03:07]} 13. Bd2 {[%emt 0:02:23]} Be6 {[%emt 0:00:17]} 14. b4 {[%emt 0:02:25]} Bb6 {[%emt 0:02:09]} 15. Qe2 {[%emt 0:02:34]} Qe7 {[%emt 0:00:38]} 16. Be3 {[%emt 0:03:19]} f5 {[%emt 0:02:06]} 17. Bxb6 {[%emt 0:00:30]} cxb6 {[%emt 0:03:22]} 18. Nd2 {[%emt 0:05:25]} f4 {[%emt 0:01:49]} 19. Kh2 Rfc8 {[%emt 0:01:21]} 20. c3 {[%emt 0:01:52]} a5 {[%emt 0:00:30]} 21. bxa5 {[%emt 0:00:30]} bxa5 {[%emt 0:00:30]} 22. Rfc1 {[%emt 0:00:30]} Bf7 {[%emt 0:00:30]} 23. Nf3 {[%emt 0:00:30]} Bh5 {[%emt 0:00:30]} 24. d4 {[%emt 0:00:30]} a4 {[%emt 0:05:26]} 25. Rg1 {[%emt 0:11:48]} Ra7 {[%emt 0:06:04]} 26. Qd2 {[%emt 0:07:14]} Kh8 {[%emt 0:01:33]} 27. dxe5 {[%emt 0:04:16]} dxe5 {[%emt 0:01:45]} 28. Rad1 Bxf3 {[%emt 0:00:30]} 29. gxf3 {[%emt 0:00:52]} Rcc7 {[%emt 0:01:33]} 30. Qd8+ Kh7 {[%emt 0:00:12]} 31. Qxe7 {[%emt 0:05:17]} Rxe7 {[%emt 0:00:16]} 32. Rd5 {[%emt 0:01:12]} Rab7 {[%emt 0:00:30]} 33. Rgd1 {[%emt 0:00:30]} b4 {[%emt 0:00:30]} 34. cxb4 {[%emt 0:00:30]} Rxb4 {[%emt 0:00:30]} 35. R1d2 {[%emt 0:00:30]} Re6 {[%emt 0:00:30]} 36. Kg2 {[%emt 0:00:30]} Rb3 {[%emt 0:00:30]} 37. R5d3 {[%emt 0:00:30]} Reb6 {[%emt 0:00:30]} 38. Rxb3 {[%emt 0:00:30]} Rxb3 {[%emt 0:00:30]} 39. Rc2 {[%emt 0:00:30]} Rb5 {[%emt 0:00:30]} 40. Rc4 {[%emt 0:00:30]} Rxb2 {[%emt 0:00:30]} 41. Rxa4 {[%emt 0:00:30]} Rb5 {[%emt 0:00:30]} 42. Ra6 {[%emt 0:00:30]} Kg8 {[%emt 0:00:30]} 43. Ra7 {[%emt 0:00:30]} Rb6 {[%emt 0:00:30]} 44. Re7 {[%emt 0:00:30]} Rb5 {[%emt 0:00:30]} 45. Re6 {[%emt 0:00:30]} Kf7 {[%emt 0:00:30]} 46. Rc6 {[%emt 0:00:30]} Rb7 {[%emt 0:00:30]} 47. Rd6 {[%emt 0:00:30]} Re7 {[%emt 0:00:30]} 48. h4 {[%emt 0:00:30]} h5 {[%emt 0:00:30]} 49. Rc6 {[%emt 0:00:30]} Re6 {[%emt 0:00:30]} 1-0

[Event "Hungary Olimpic Hopes 2022"]
[Site "Tapolca"]
[Date "2022.06.26"]
[Round "7.14"]
[White "Hangyal, Dora"]
[Black "Balazs, Szabina Zoe"]
[Result "1-0"]
[ECO "C01"]
[WhiteElo "1163"]
[BlackElo "1426"]
[Annotator "NA RC"]
[PlyCount "81"]
[EventDate "2022.06.23"]
[EventType "swiss"]
[EventCountry "HUN"]
[SourceTitle "playchess.com"]
[Source "ChessBase"]
[SourceQuality "1"]
[TimeControl "5400+30"]

1. e4 {[%emt 0:00:01]} e6 {[%emt 0:00:05]} 2. d4 {[%emt 0:00:05]} d5 {[%emt 0:00:07]} 3. exd5 {[%emt 0:00:23]} exd5 {[%emt 0:00:28]} 4. Nf3 {[%emt 0:00:14]} Bd6 {[%emt 0:00:26]} 5. Nc3 {[%emt 0:00:11]} Ne7 {[%emt 0:00:58]} 6. Bg5 {[%emt 0:00:18]} f6 {[%emt 0:01:02]} 7. Be3 {[%emt 0:00:13]} c6 {[%emt 0:00:55]} 8. Bd3 {[%emt 0:00:50]} Nd7 {[%emt 0:01:28]} 9. Nh4 {[%emt 0:00:26]} Nb6 {[%emt 0:01:10]} 10. Qh5+ {[%emt 0:00:28]} Kd7 {[%emt 0:00:53]} 11. O-O-O {[%emt 0:01:07]} g6 {[%emt 0:02:27]} 12. Qe2 {[%emt 0:00:06]} Kc7 {[%emt 0:01:19]} 13. g3 {[%emt 0:00:58]} g5 {[%emt 0:01:27]} 14. Ng2 {[%emt 0:00:25]} h6 {[%emt 0:01:07]} 15. f4 {[%emt 0:00:50]} h5 {[%emt 0:04:55]} 16. fxg5 {[%emt 0:00:30]} Bg4 {[%emt 0:00:30]} 17. Qd2 {[%emt 0:00:39]} Bxd1 {[%emt 0:00:09]} 18. Rxd1 {[%emt 0:00:07]} fxg5 {[%emt 0:00:07]} 19. Bxg5 {[%emt 0:00:13]} Qd7 {[%emt 0:01:33]} 20. Nh4 {[%emt 0:04:56]} Bb4 {[%emt 0:09:22]} 21. a3 {[%emt 0:00:20]} Bd6 {[%emt 0:00:16]} 22. Rf1 {[%emt 0:04:57]} Raf8 {[%emt 0:02:52]} 23. Qe2 {[%emt 0:00:51]} Rxf1+ {[%emt 0:01:28]} 24. Qxf1 {[%emt 0:00:10]} Qg4 {[%emt 0:01:31]} 25. Bd2 {[%emt 0:08:53]} Nd7 {[%emt 0:04:05]} 26. Nf5 {[%emt 0:02:39]} Rf8 {[%emt 0:01:08]} 27. h3 {[%emt 0:00:21]} Qg8 {[%emt 0:05:46]} 28. Nd1 {[%emt 0:01:28]} Qf7 {[%emt 0:02:20]} 29. g4 {[%emt 0:02:19]} hxg4 {[%emt 0:01:57]} 30. hxg4 {[%emt 0:00:08]} Qf6 {[%emt 0:03:20]} 31. Nde3 {[%emt 0:04:29]} c5 {[%emt 0:03:12]} 32. dxc5 {[%emt 0:02:21]} Bxc5 {[%emt 0:01:17]} 33. Qf4+ {[%emt 0:04:00]} Kc6 {[%emt 0:06:42]} 34. Qa4+ Kc7 {[%emt 0:00:38]} 35. Nxe7 {[%emt 0:01:20]} Qe5 {[%emt 0:02:24]} 36. Ng6 {[%emt 0:01:43]} Qg3 {[%emt 0:04:48]} 37. Nxf8 {[%emt 0:00:29]} Nxf8 {[%emt 0:00:31]} 38. Nxd5+ {[%emt 0:00:57]} Kd8 {[%emt 0:03:28]} 39. Bg5+ {[%emt 0:00:45]} Be7 {[%emt 0:00:18]} 40. Bxe7+ {[%emt 0:00:07]} Kc8 {[%emt 0:00:07]} 41. Qe8# {[%emt 0:00:34]} 1-0

[Event "Hungary Olimpic Hopes 2022"]
[Site "Tapolca"]
[Date "2022.06.26"]
[Round "7.17"]
[White "Minga-Nagy, Abel Inti"]
[Black "Hegedus, Zsombor"]
[Result "1-0"]
[ECO "A00"]
[WhiteElo "1364"]
[BlackElo "1320"]
[Annotator "NA RC"]
[PlyCount "119"]
[EventDate "2022.06.23"]
[EventType "swiss"]
[EventCountry "HUN"]
[SourceTitle "playchess.com"]
[Source "ChessBase"]
[SourceQuality "1"]
[TimeControl "5400+30"]

1. g3 {[%emt 0:30:04]} d5 {[%emt 0:30:10]} 2. Bg2 {[%emt 0:00:06]} e5 {[%emt 0:00:32]} 3. c4 {[%emt 0:00:09]} c6 {[%emt 0:00:55]} 4. cxd5 {[%emt 0:00:53]} cxd5 {[%emt 0:00:49]} 5. d4 {[%emt 0:00:35]} e4 {[%emt 0:03:23]} 6. Nc3 {[%emt 0:01:13]} Nf6 7. Bg5 {[%emt 0:01:30]} Be6 {[%emt 0:02:50]} 8. Qb3 Nbd7 {[%emt 0:05:42]} 9. e3 {[%emt 0:03:00]} Be7 10. Nge2 {[%emt 0:04:24]} h6 {[%emt 0:04:10]} 11. Bxf6 {[%emt 0:01:06]} Nxf6 {[%emt 0:01:14]} 12. Nf4 O-O {[%emt 0:01:34]} 13. Nxe6 {[%emt 0:01:20]} fxe6 {[%emt 0:00:20]} 14. O-O {[%emt 0:00:58]} Qd7 {[%emt 0:05:04]} 15. Rac1 {[%emt 0:00:52]} Rac8 16. Ne2 {[%emt 0:00:46]} Rc6 {[%emt 0:03:29]} 17. Rxc6 {[%emt 0:01:21]} bxc6 {[%emt 0:02:32]} 18. Nf4 {[%emt 0:00:55]} Bd6 19. Bh3 Re8 {[%emt 0:05:25]} 20. Rc1 {[%emt 0:01:19]} Bxf4 {[%emt 0:01:03]} 21. gxf4 {[%emt 0:01:49]} g5 {[%emt 0:02:17]} 22. Qa4 {[%emt 0:00:40]} g4 23. Bf1 {[%emt 0:00:43]} Rc8 {[%emt 0:01:33]} 24. Qa6 {[%emt 0:02:31]} Ne8 {[%emt 0:01:59]} 25. Bb5 {[%emt 0:01:36]} Nd6 26. Rxc6 Rxc6 {[%emt 0:04:35]} 27. Qxc6 {[%emt 0:00:49]} Qxc6 {[%emt 0:02:01]} 28. Bxc6 Kf7 {[%emt 0:00:44]} 29. Kg2 {[%emt 0:00:47]} Kf6 {[%emt 0:00:41]} 30. Kg3 {[%emt 0:00:27]} h5 31. a4 Nf5+ {[%emt 0:01:44]} 32. Kg2 {[%emt 0:00:49]} h4 {[%emt 0:00:56]} 33. b4 {[%emt 0:00:00]} h3+ 34. Kh1 {[%emt 0:00:15]} Ke7 {[%emt 0:01:20]} 35. b5 {[%emt 0:00:27]} Kd6 {[%emt 0:00:38]} 36. Be8 {[%emt 0:01:04]} Kc7 {[%emt 0:00:35]} 37. Bf7 {[%emt 0:00:33]} Ng7 38. a5 {[%emt 0:00:21]} Kb7 {[%emt 0:01:59]} 39. Kg1 {[%emt 0:00:07]} a6 {[%emt 0:01:23]} 40. b6 {[%emt 0:00:12]} Kb8 41. Kf1 {[%emt 0:00:07]} Kb7 {[%emt 0:01:10]} 42. Ke1 {[%emt 0:00:13]} Kb8 {[%emt 0:00:11]} 43. Kd2 Kb7 {[%emt 0:00:55]} 44. Kc3 {[%emt 0:00:35]} Kb8 45. Kb4 {[%emt 0:00:00]} Nf5 {[%emt 0:01:36]} 46. Bxe6 g3 47. fxg3 {[%emt 0:00:18]} Nxg3 {[%emt 0:03:07]} 48. Bxh3 {[%emt 0:00:19]} Nh5 {[%emt 0:00:50]} 49. Kc5 {[%emt 0:00:19]} Nf6 50. Be6 Kb7 {[%emt 0:01:07]} 51. Bxd5+ {[%emt 0:00:37]} Kb8 52. h4 Nxd5 53. Kxd5 {[%emt 0:00:27]} Kb7 {[%emt 0:00:45]} 54. f5 Kb8 {[%emt 0:00:14]} 55. f6 {[%emt 0:00:25]} Ka8 56. f7 {[%emt 0:00:21]} Kb7 {[%emt 0:00:21]} 57. h5 Kc8 {[%emt 0:00:21]} 58. f8=Q+ {[%emt 0:00:15]} Kd7 {[%emt 0:00:07]} 59. b7 {[%emt 0:00:29]} Kc7 {[%emt 0:00:06]} 60. Qc8# 1-0